{"text_format":"3","workbook":"xlsx","n_sheets":6,"sheets":["总表","监控系统清单及参数","公共广播系统清单及参数 ","音体教室灯光配置","一体机参数","音体教室音响设备清单及参数"],"not_rendered":{"images":19},"read":"whole","date_system":"1900"}

{"sheet":"总表","index":0,"n_rows":13,"n_cols":9,"rows_kept":13,"merged":[[0,0,0,8],[5,3,6,3],[12,0,12,3]]}
["灯光系统、监控系统清单及参数"]
["序号","名称","技术参数","参考图片","单位","数量","单价（元）","总计（元）","备注"]
[1,"电子显示屏（楼门口）","巨彩P10 ,单色红色0.57*5.85，带无线控制卡，包边铝框全防水设计",null,"块",1,2600,{"$f":"F3*G3","v":2600}]
[2,"电子显示屏（二楼音乐厅）","巨彩P10 单色红色0.41*8.09，带无线控制卡，包边铝框",null,"块",1,2600,2600]
[3,"电子显示屏（二楼会议室）","巨彩P10 单色红色0.41*4.89，带无线控制卡，包边铝框",null," 块",1,1500,1500]
[4,"舞台电子屏","全彩屏，室内Q1.8/Q1.86E全彩3.62*1.7 = 6.15平方",null,"块",6.15,6880,42312]
[5,"校门口电子屏","室内Q1.8/Q1.86E全彩2.66*1.7=4.522平方",null,"块",4.5,6880,30960]
[6,"监控","监控系统清单及参数",null,"套",1,32020,32020,"详见附件"]
[7,"广播系统","公共广播系统清单及参数 ",null,"套",1,4650,4650,"详见附件"]
[8,"舞台灯光系统","音体教室灯光配置",null,"套",1,13200,13200,"详见附件"]
[9,"一体机","65英寸幼教平板，参数见附件",null,"台",14,8800,123200,"详见附件"]
[10,"功能厅音响设","音体教室音响设备清单及参数",null,"套",1,29180,29180,"详见附件"]
["合计",{"$nulls":6},{"$f":"SUM(H3:H12)","v":282222}]

{"sheet":"监控系统清单及参数","index":1,"n_rows":20,"n_cols":7,"rows_kept":20,"merged":[[0,0,0,6],[2,0,2,5],[18,2,18,5],[19,2,19,4],[20,0,20,6],[21,0,21,6]]}
["监控系统清单及参数"]
["序号","产品名称","参数","单位","数量","单价","总价"]
["外围跟厨房"]
[1,"摄像头","全彩带夜视，200万像素，防水IP66, 红外补光30米以上，视频压缩H265, POE供电，\n电源线，一体线1.0以上国标  \n现场施工要立杆，挖沟布线，要美观，整洁","个",15,295,{"$f":"E4*F4","v":4425}]
[2,"摄像头","全彩带夜视，300万像素，防水IP66, 红外补光30米以上，视频压缩H265, POE供电，\n电源线，一体线1.0以上国标  \n现场施工要立杆，挖沟布线，要美观，整洁","个",6,295,{"$f":"E5*F5","v":1770}]
[3,"电源","12V2A","个",21,25,525]
[4,"支架","鸭嘴","台",21,25,525]
[5,"立杆","3.5米标准组合杆","根",4,700,2800]
[6,"弱电盒","放置设备","个",21,15,315]
[7,"弱电箱","300*400","个",3,190,570]
[8,"录像机","32路4盘位","台",1,1680,1680]
[9,"硬盘","8T(储存1个月）","个",2,1480,2960]
[10,"光纤相关设备","收发器，尾纤，终端，溶解等","批",1,900,900]
[11,"光纤","电信级12芯","米",300,1.5,450]
[12,"交换机","8口","台",4,180,720]
[13,"超五类网线","国标","米",2000,2,4000]
[14,"监控专用电源线","国标RVV","米",2000,1.5,3000]
[15,"扎带，水晶头，管卡，PVC线管，电胶布等",null,"批",1,580,580]
[16,"人工费用",{"$nulls":4},6800]
[{"$nulls":6},{"$f":"SUM(G4:G19)","v":32020}]

{"sheet":"公共广播系统清单及参数 ","index":2,"n_rows":7,"n_cols":8,"rows_kept":7,"merged":[[0,0,0,7],[5,1,5,3],[6,0,6,5]]}
["公共广播系统清单及参数"]
["序号","设备或材料名称","产品图","技术参数","数量","单位","单价","总价"]
[1,"壁挂音柱40W",null,"1、全天候设计（防水、耐热、抗硫），可在多种特殊环境下长期使用\n2、高灵敏度、高声压级设计，宽广的频响覆盖范围\n3、声音清晰纯净，轻松应对各种背景音乐和语音扩声需求 \n4、简约大方的外观设计，能与各种场合融合 \n喇叭口径 低音4”×2，高音3”×1\n额定功率20W\n最大功率40W\n额定输入70V/100V\n灵敏度91dB\n频响范围120Hz-18KHz\n最大声压级104dB\n外形尺寸（mm）151×132×419\n",2,"台",490,{"$f":"G3*E3","v":980}]
[2,"无线麦克",null,"UHF600-699,一拖二红外自动对频 \n最大使用距离80米，理想使用距离30米\n使用lD导频锁频技术,相同频率也不受扞扰而影响正常使用。          ",1,"套",990,{"$f":"G4*E4","v":990}]
[3,"功放主机120W",null,"1、提供100V/70V定压输出及4-16Ω输出\n2、3路MIC、2路AUX输入\n3、MIC1具有优先默音功能\n4、1路扩展输出口，可用于功率扩展\n5、温度保护、过压及过载保护、短路保护\n额定功率 120W\n功   耗  180W\n输入灵敏度 AUX 250mV（非平衡）MIC 5 mV（非平衡）\n音量调整范围  BASS: ±10dB  TREBLE: ±10dB\n线性失真 ≤1%（100%功率）\n信 噪 比 LINE≥86dB  MIC≥72dB\n优先级别  MIC1优先\n频率响应  70Hz-18KHz（±3dB)\n输出调整率 <3dB\n辅助输出 非平衡0.775V\n保    护 过载保护、短路保护、过温保护\n供电电源 AC220V±10% 50Hz-60Hz\n机身尺寸（mm）307*440*88mm ",1,"台",1680,{"$f":"G5*E5","v":1680}]
[4,"安装 调试 配线 线路优化 运费（综合类别费用）",null,null,1,"项",1000,{"$f":"G6*E6","v":1000}]
["设备总计（未税）：",{"$nulls":6},{"$f":"SUM(H3:H6)","v":4650}]

{"sheet":"音体教室灯光配置","index":3,"n_rows":14,"n_cols":10,"rows_kept":14,"merged":[[0,0,0,9],[2,0,2,8],[4,0,4,8],[6,0,6,8],[8,0,8,8],[10,2,10,5],[11,2,11,5],[12,0,12,8],[13,0,13,8]]}
["        音体教室舞台灯光清单及参数"]
["序号","品名","品牌型号","产品图片","性能","效果","单位","数量","单价","金额"]
["面光灯"]
[1,"暖白帕灯","PZ-002",null,"电压：AC　110V-220V/50-60HZ \n总功率：150W \n光源：暖光\n光色温：暖白3200K\n通道模式：2CHS/4通道\n光源寿命：50000-100000　hours \n调光频率：1000Hz \n驱动电流：700mA\n控制信号：DMX512\n控制模式：自走，主从\nDMX通道：6通道\n发光角度：45°/80° 可选\n防护等级：IP20   ",null,"台",8,580,{"$f":"I4*H4","v":{"v":4640,"d":"4,640"}}]
["染色灯"]
[2,"54颗全彩帕灯","SY-003",null,"光源：54颗1W LED \n电源：AC90-250V/50-60HZ\n总功率：60W\n光源寿命：6-10万小时\nLED角度：25°\n控制方式：自动/声控/ DMX/主从\nDMX通道：8\n净重/毛重：2.3/2.5KG\n尺寸：250*250*360mm \n描述：铸铝外壳，颜色速度可调（可定制手拉手电源线）",null,"台",8,480,{"v":3840,"d":"3,840"}]
["控制器+外设部分"]
[3,"240控台","WK-240",null,"可控制12/24台16通道电脑灯，可存储场景12/24个，程序12个，\n程序最大步数为20/40步，程序总步数240/480步，总通道240个，\n调光通道48个，可分控、点控、集控。LCD液晶显示屏，16*2字符。\n电压：AC200-240V, 50HZ"," ","台",1,960,960]
["                                                         设备总合计(元）:",{"$nulls":8},{"$f":"SUM(J4:J8)","v":{"v":9440,"d":"9,440"}}]
[4,"小灯钩","S013",{"$nulls":3},"个",{"$f":"H4+H6","v":16},10,{"$f":"I10*H10","v":160}]
[5,"安装支架","定制",{"$nulls":3},"批",1,{"v":2000,"d":"2,000"},{"v":2000,"d":"2,000"}]
[6,"安装调试","物流、安装费、调试费",{"$nulls":3},"人",1,{"v":1600,"d":"1,600"},{"v":1600,"d":"1,600"}]
["安装辅材总合计(元）:       ",{"$nulls":8},{"$f":"SUM(J10:J12)","v":{"v":3760,"d":"3,760"}}]
["总合计(元）未税:     ",{"$nulls":8},{"$f":"J9+J13","v":{"v":13200,"d":"13,200"}}]

{"sheet":"一体机参数","index":4,"n_rows":6,"n_cols":2,"rows_kept":6,"merged":[[0,0,0,1]]}
["一体机参数"]
["整机要求：","一、整体设计参数要求：\n1.显示尺寸：≥ 65英寸；背光：DLED背光；待机功率≤0.5W；分辨率：3840×2160；液晶屏A级标准。\n2.★自带安卓操作系统：安卓版本不低于Android9.0 ；与可插拔式电脑系统形成双系统；至少采用四核CPU、双核GPU；RAM≥4G，ROM≥32G。（提供所投产品规格书并加盖制造商公章）\n3.红外触控技术：在Android、Windows系统双系统下均支持20点触控，支持多人同时书写和擦除。\n4.整机前置一个多功能电源按键，开机状态下短按进入节能模式；长按实现开关机。\n5.内置扩音器：整机内置 2.0 声道扬声器，前朝向 10W中高音扬声器 2 个额定总功率 20W。\n6.电脑无线传屏：可将电脑画面实时传输到大屏，并且可将大屏上的触控信号回传至电脑中，实现反向操作；整机支持同时接收并显示4个电脑画面。\n7、★提供国家强制性产品认证证书、节能认证证书（能效等级需为一级）\n二、内置电脑模块参数要求：\n1、至少搭载Intel酷睿系列第六代 i5或以上CPU，内存≥8GB DDR4笔记本内存或以上配置，硬盘≥256GB或以上SSD固态硬盘。\n2、和整机的连接采用万兆级接口，传输速率≥10Gbps。\n3、具有独立非外扩展的视频输出接口：≥1路HDMI ，USB3.0接口：≥4路，VGA接口：≥1路。"]
["整机内置备授课软件：","1．采用备授课一体化框架设计，教师可根据教学场景自由切换备课模式与触控交互教学模式。\n2．支持课件云同步，课件上的所有修改、操作均可自动同步至云端，无需单独保存上传，确保多终端调用同个课件均为最新版本，只需联网登录备授课软件即可获取课件。\n3．汉字教学工具：具备汉字生字卡，直观展示汉字部首、笔画数量，笔画书写支持分步展示和连续展示，支持汉字朗读。\n4．专用美术画板工具：提供铅笔、毛笔、油画笔等笔触，具备符合绘画调色教学需求的模拟调色盘，可选择不同颜色混合调色。\n5．英汉字典：支持输入英文字母、单词，单词可生成包含释义、近义词并支持英语朗读。\n6．提供丰富的地理教学图集，可查看行星的详细数据信息和内部结构信息（地壳、地幔、外核、内核等），支持地球模型直接进行平面/立体转换，清晰展现地球表面的六大板块、降水分布、气温分布、气候分布、人口分布、表层洋流、陆地自然带、海平面等压线等内容。\n互动分类游戏：支持创建互动分类游戏；不少于10种游戏模板，可轻松生成互动分类游戏，提升课堂趣味性。"]
["内置幼儿教学资源：","1．系统资源严格依据《3-6岁儿童学习与发展指南》与《幼儿园指导纲要》编制而成，资源内容涵盖健康、语言、社会、科学、艺术等五个领域。\n2．系统主要分为应用和资源两大特色教学功能：\n3．资源包括：儿童普通读物动画和视频资源列表（2600个及以上）；\n4．应用包括：“主题课程、特色课堂、电子白板、工具”等。\n5．系统提供相对成体系的课程，不仅仅是课件，老师授课一键调用资源及其方便简单。\n6．系统提供：主题绘本，礼仪与安全，国学经典，幼儿才艺，剑桥主题英语，剑桥互动英语，经典童话故事，行为习惯故事，多元主题活动，潜能互动课程，手指操，蒙氏快乐阅读12类五大领域教育资源。\n7．幼教系统不低于2900条1080P高清视频和高清动画资源。"]
["助手软件","1．提供符合幼教风格的快捷桌面，用户可以快捷进入白板，相机，文件管理及更多应用；\n2．桌面支持最大化与最小化切换，打开应用后，桌面自动进入最小化，不影响应用正常使用，同时支持随意拖拽；\n3．支持自定义设备名称：教师可以自定义编辑主页名称，如“XX幼儿园小一班”；\n4．提供更多应用功能列表，用户可以快速定位应用；同时支持用户管理应用，教师可以根据教学需要增加需要的应用，以及删除不需要的应用；\n5．返回windows桌面：提供快捷返回windows界面功能；\n自动更新检测：系统自动监测是否当前为最新版本，若不在最新版本，可进行一键更新；"]
["配套幼教智能笔","1.整体功能：配置不少于5个物理功能按键，支持上下翻页，音量调节，播放暂停，录音，语音操控，点读教学等功能；\n2.扫书点读：支持扫书点读操控，可通过配套的主题课程教材进行点读操控，自动打开交互智能平板上里安装的数字教学课程内容应用，无需单独登录或者启动程序，支持点击OK键在flash视频动画播放/暂停，教学精彩一触即达，点读头响应延时≤40ms；（提供国家级检测机构所出具的权威检测报告复印件并加盖厂家公章）\n3.智能遥控：支持智能摇控功能，短按实现翻页控制，兼容白板软件、PPT、PDF等多种演示软件课件，长按音量大小调整；支持播放/暂停等操作；\n4.语音操控：支持语音识别操控，可直接通过语音打开PC内已安装的应用、音量大小调整、打开关闭应用软件等系统操作；可直接通过语音调用搜索课件内容，检索对应课程等，轻松掌控课堂教学活动；\n5.一键录音：支持一键录音，自动分段存储；录音内容可存储在笔内部，内存不少于512MB；\n6.录音转写：提供录音转写工具软件，用户可以将录音文件上传云端进行转写，云端支持语音及转写后文档保存；转写成功后笔内部录音文件自动删除，避免文件冗余；（提供国家级检测机构所出具的权威检测报告复印件并加盖厂家公章）\n7.无线接收器：采用RF 2.4GHz无线连接方式，无线接收器采用磁性吸附设计，不易丢失，1对1自动匹配，即插即用；\n8.自动节能：支持智能休眠节电，大于3分钟不使用时，自动断开进入待机状态；大于10分钟不使用时，自动关机；待机状态下，晃动笔，自动唤醒。保障笔使用不当造成电量损耗；\n9.锂电池：内置锂电池驱动，支持USB充电，联机使用时，满载续航能力大于4小时；脱机使用时，续航能力大于72小时；\n10.配套书籍：配套提供5本或以上《幼儿多元能力主题活动》主题图书教材，在主题活动中为幼儿安排了涵盖社会、健康、语言、科学、艺术等发展领域的课程知识，激发幼儿探索世界的兴趣，发掘幼儿深藏的潜能。课程设计符合幼儿生理、心理的发展规律,通过多媒体的视频动漫点读教学,给幼儿营造生动活泼、丰富多彩的课堂教学环境。"]

{"sheet":"音体教室音响设备清单及参数","index":5,"n_rows":13,"n_cols":9,"rows_kept":13,"merged":[[0,0,0,8],[10,2,10,3],[12,2,12,7]]}
["音体教室音响设备清单及参数"]
["序号","产品名称","技术参数及指标","图片","品牌/产地","数量","单位","单价（元）","总价（元）"]
[1,"主音响","单元类型：1×3”(75×)高频压缩驱动器 1×15”低音 频率响应：55Hz ~18KHz额定功率：500W灵敏度：99db\n最大声压级：124db阻抗：8Ω标准覆盖角：80°* 50°可出 厂家具有3A证书、ISO90001证书 产品具有MA机构的检测报告",null,"中国",2,"只",{"v":3680,"d":"3680.00"},{"$f":"H3*F3","v":{"v":7360,"d":"7360.00"}}]
[2,"辅助音响","单元类型：低频 12”铁氧体低音单元（170磁）高频1.75”(44.4芯) 频率响应：60Hz ~20KHz 额定功率：450W 灵敏度：98db 最大声压级：124db 覆盖角度：90°* 60°阻抗：8Ω 厂家具有3A证书、ISO90001证书 产品具有MA机构的检测报告",null,"中国",2,"只",{"v":2680,"d":"2680.00"},{"$f":"H4*F4","v":{"v":5360,"d":"5360.00"}}]
[3,"辅助音响\n功放","立体声模式   每声道平均持续输出功率8Ω 20Hz-20KHz 0.03％THD   600W4Ω 20Hz-20KHz 0.05％THD   900W2Ω 1KHz  1％THD 1100W桥接音声道模式 具有开机保护、短路、直流、过热、复位开关和超音频保护装置负载保护   自动哑音开/关，直流故障电源自动断开  厂家具有3A证书、ISO90001证书 产品具有国家3C认证",null,"中国",1,"台",{"v":2800,"d":"2800.00"},{"v":2800,"d":"2800.00"}]
[4,"主音响\n功放","立体声模式   每声道平均持续输出功率8Ω 20Hz-20KHz 0.03％THD  800W4Ω 20Hz-20KHz 0.05％THD   1200W2Ω 1KHz  1％THD 1400W桥接音声道模式    平衡持续输出功率8Ω  20Hz-20KHz 0.1％THD  具有开机保护、短路、直流、过热、复位开关和超音频保护装置负载保护  自动哑音开/关，直流故障电源 厂家具有3A证书、ISO90001证书 产品具有国家3C认证",null,"中国",1,"台",{"v":1980,"d":"1980.00"},{"v":1980,"d":"1980.00"}]
[5,"调音台","话筒：6通道频响：+0.5dB/-0.5dB（20Hz-20kHz）总谐波失真：0.03%@+14dBu（20 Hz-20kHz）输入通道：12通道：单声道：4；立体声：4输出通道：STEREO OUT：2；PHONES：1母线：立体声：1；编组：2，AUX（包括FX）USB音频：USB音频2.0兼容 采样率：最大192kHz，Bit深度24-bit幻象电源电压：+48V内建数字效果：24编程",null,null,1,"台",{"v":2250,"d":"2250.00"},{"v":2250,"d":"2250.00"}]
[6,"真分集无线麦","接收机 RECEIVER频率范围Frequency range:  740—800MHz可调信道数Adjustable number of channels:  100X2=200震荡方式Vibration mode:  锁相环（PLL)频率合成频率稳定性Frequency Stability:  ±10ppm接收方式The receiving mode:  超外差二次变频分集类型Diversity Type:  双调谐眞分集自动选讯接收灵敏度Receiver sensitivity:  -95dBm音频频响Audio Frequency Response :  40--18KHz失真度Distortion:  ≤0.5%信噪比Signal to Noise Ratio:  ≥110dB音频输出Audio output:  平衡输出和不平衡输出电源规格Power supply:  110-240V-12V 50-60Hz（开关电源适配器）发射机 TRANSMITTER频率范围Frequency range:  740—800MHz可调信道数Adjustable number of channels:  100X2=200震荡方式Vibration mode:  锁相环（PLL)频率合成频率稳定性Frequency Stability:  ±10ppm调制方式Modulation:  调频（FM）射频功率RF power: 10--30mW音频频响Audio Frequency Response:  40--18KHz失真度Distortion:  ≤0.5%电池规格Battery:  2x1.5V AA Size电池寿命Battery Life:  8—15小时 厂家具有3A证书、ISO90001证书",null,"中国",1,"套",{"v":1800,"d":"1800.00"},{"v":1800,"d":"1800.00"}]
[7,"音响数字处理器","输入/输出通道  4入8出4Input/8Output 每个输入通道功能   Each Input  channel 静音Mute √ 延时Delay 每个通道设立单独延时，调节范围  adj range: 0-1000ms。 极性Poalr 同相（+）反相（-）In phase(+) & reversed phase( -) 均衡EQ 6个参量均衡,中心频率点(FREQ)：20Hz-20KHz   厂家具有3A证书、ISO90001证书 产品具有MA机构的检测报告、调式软件有专业音频处理设备控制软件著作权登记证                                       ",null,"中国",1,"套",{"v":2250,"d":"2250.00"},{"v":2250,"d":"2250.00"}]
[8,"机柜",null,null,"中国",1,"台",{"v":880,"d":"880.00"},{"v":880,"d":"880.00"}]
[9,"线材、配件","过机线、音箱吊件、系统接插件、音响支架等",null,null,1,"项",{"v":1000,"d":"1000.00"},{"v":1000,"d":"1000.00"}]
[10,"安装调式费",{"$nulls":3},1,"项",{"v":3500,"d":"3500.00"},{"v":3500,"d":"3500.00"}]
[11,"小计",{"$nulls":6},{"$f":"SUM(I3:I12)","v":{"v":29180,"d":"29180.00"}}]